[Event "Titled Tuesday Blitz July 11 Early 2023"]
[White "Soham Kamotra"]
[Black "Bazeev, German"]
[WhiteFideId "46647490"]
[BlackFideId "24119350"]
[WhiteElo "2584"]
[BlackElo "2789"]
[Result "0-1"]
[Round "3"]
[TimeControl "180+2"]
[Date "2023.07.11"]
[WhiteClock "0:00:13"]
[BlackClock "0:01:04"]
[Board "31"]

1. d4 {[%clk 0:03:00]}  Nf6 {[%clk 0:02:59]} 2. Bf4 {[%clk 0:02:57]}  g6 {[%clk 0:02:57]} 3. Nc3 {[%clk 0:02:57]}  d5 {[%clk 0:02:57]} 4. h3 {[%clk 0:02:55]}  c6 {[%clk 0:02:54]} 5. e3 {[%clk 0:02:53]}  Bg7 {[%clk 0:02:54]} 6. Bd3 {[%clk 0:02:50]}  b6 {[%clk 0:02:40]} 7. Nf3 {[%clk 0:02:28]}  O-O {[%clk 0:02:28]} 8. O-O {[%clk 0:02:19]}  Bb7 {[%clk 0:02:06]} 9. e4 {[%clk 0:02:18]}  dxe4 {[%clk 0:02:05]} 10. Nxe4 {[%clk 0:02:19]}  Nbd7 {[%clk 0:02:05]} 11. c3 {[%clk 0:02:14]}  c5 {[%clk 0:02:02]} 12. Qe2 {[%clk 0:01:56]}  cxd4 {[%clk 0:01:54]} 13. Rad1 {[%clk 0:01:35]}  Bxe4 {[%clk 0:01:43]} 14. Bxe4 {[%clk 0:01:35]}  Nxe4 {[%clk 0:01:44]} 15. Qxe4 {[%clk 0:01:35]}  Nc5 {[%clk 0:01:45]} 16. Qb1 {[%clk 0:01:22]}  Ne6 {[%clk 0:01:44]} 17. Be3 {[%clk 0:01:17]}  dxe3 {[%clk 0:01:36]} 18. Rxd8 {[%clk 0:01:16]}  exf2+ {[%clk 0:01:37]} 19. Kxf2 {[%clk 0:01:15]}  Raxd8 {[%clk 0:01:38]} 20. Rd1 {[%clk 0:01:14]}  Nc5 {[%clk 0:01:38]} 21. Ke2 {[%clk 0:01:08]}  e5 {[%clk 0:01:37]} 22. b4 {[%clk 0:00:57]}  Ne6 {[%clk 0:01:37]} 23. Rxd8 {[%clk 0:00:45]}  Rxd8 {[%clk 0:01:38]} 24. g3 {[%clk 0:00:46]}  Bh6 {[%clk 0:01:28]} 25. Nxe5 {[%clk 0:00:40]}  Rd2+ {[%clk 0:01:26]} 26. Kf1 {[%clk 0:00:38]}  Bg7 {[%clk 0:01:17]} 27. Qe4 {[%clk 0:00:29]}  Bxe5 {[%clk 0:01:14]} 28. Qxe5 {[%clk 0:00:30]}  Rxa2 {[%clk 0:01:15]} 29. h4 {[%clk 0:00:30]}  h5 {[%clk 0:01:13]} 30. Ke1 {[%clk 0:00:24]}  a5 {[%clk 0:01:12]} 31. Qb8+ {[%clk 0:00:23]}  Kg7 {[%clk 0:01:07]} 32. Qxb6 {[%clk 0:00:23]}  a4 {[%clk 0:01:01]} 33. Qa7 {[%clk 0:00:19]}  a3 {[%clk 0:01:01]} 34. b5 {[%clk 0:00:18]}  Ra1+ {[%clk 0:01:01]} 35. Kd2 {[%clk 0:00:17]}  a2 {[%clk 0:01:00]} 36. Kd3 {[%clk 0:00:15]}  Rd1+ {[%clk 0:00:59]} 37. Kc4 {[%clk 0:00:14]}  a1=Q {[%clk 0:01:00]} 38. Qxa1 {[%clk 0:00:14]}  Rxa1 {[%clk 0:01:01]} 39. Kd5 {[%clk 0:00:13]}  Nc7+ {[%clk 0:01:00]} 40. Kc6 {[%clk 0:00:13]}  Nxb5 {[%clk 0:01:01]} 41. Kxb5 {[%clk 0:00:14]}  Rg1 {[%clk 0:01:02]} 42. c4 {[%clk 0:00:15]}  Rxg3 {[%clk 0:01:03]} 43. c5 {[%clk 0:00:16]}  Rg1 {[%clk 0:01:03]} 44. c6 {[%clk 0:00:13]}  Rc1 {[%clk 0:01:04]} 0-1


[Site "https://www.chess.com"]

[Event "Titled Tuesday Blitz July 11 Early 2023"]
[White "Borrmann, Laurenz"]
[Black "Bachmann, Axel"]
[WhiteFideId "312187930"]
[BlackFideId "3700488"]
[WhiteElo "2582"]
[BlackElo "2787"]
[Result "0-1"]
[Round "3"]
[TimeControl "180+2"]
[Date "2023.07.11"]
[WhiteClock "0:00:33"]
[BlackClock "0:01:05"]
[Board "32"]

1. d4 {[%clk 0:03:00]}  Nf6 {[%clk 0:02:58]} 2. c4 {[%clk 0:02:59]}  e6 {[%clk 0:02:58]} 3. Nf3 {[%clk 0:02:58]}  Bb4+ {[%clk 0:02:56]} 4. Nbd2 {[%clk 0:02:59]}  O-O {[%clk 0:02:55]} 5. a3 {[%clk 0:02:59]}  Be7 {[%clk 0:02:56]} 6. e4 {[%clk 0:03:00]}  d6 {[%clk 0:02:56]} 7. Be2 {[%clk 0:02:59]}  e5 {[%clk 0:02:54]} 8. dxe5 {[%clk 0:03:00]}  dxe5 {[%clk 0:02:55]} 9. Nxe5 {[%clk 0:03:00]}  Re8 {[%clk 0:02:55]} 10. O-O {[%clk 0:02:59]}  Na6 {[%clk 0:02:53]} 11. b4 {[%clk 0:02:40]}  Qd4 {[%clk 0:02:49]} 12. Nef3 {[%clk 0:02:11]}  Qxa1 {[%clk 0:02:47]} 13. Qb3 {[%clk 0:01:58]}  Nxb4 {[%clk 0:02:33]} 14. Bb2 {[%clk 0:01:45]}  Qa2 {[%clk 0:02:33]} 15. Qc3 {[%clk 0:01:40]}  Nc2 {[%clk 0:02:13]} 16. c5 {[%clk 0:01:21]}  Nxa3 {[%clk 0:01:55]} 17. Nc4 {[%clk 0:01:06]}  Nxc4 {[%clk 0:01:45]} 18. Bxc4 {[%clk 0:01:07]}  Qa4 {[%clk 0:01:46]} 19. Ng5 {[%clk 0:01:04]}  Be6 {[%clk 0:01:40]} 20. Nxe6 {[%clk 0:01:02]}  fxe6 {[%clk 0:01:41]} 21. Bxe6+ {[%clk 0:01:02]}  Kh8 {[%clk 0:01:41]} 22. e5 {[%clk 0:01:01]}  Ne4 {[%clk 0:01:38]} 23. Qh3 {[%clk 0:01:01]}  Rf8 {[%clk 0:01:28]} 24. Bf5 {[%clk 0:00:43]}  Ng5 {[%clk 0:01:27]} 25. Qd3 {[%clk 0:00:39]}  Rad8 {[%clk 0:01:27]} 26. Qb1 {[%clk 0:00:39]}  Qf4 {[%clk 0:01:11]} 27. g4 {[%clk 0:00:36]}  Nf3+ {[%clk 0:01:09]} 28. Kg2 {[%clk 0:00:36]}  Nh4+ {[%clk 0:01:07]} 29. Kg1 {[%clk 0:00:33]}  Rxf5 {[%clk 0:01:05]} 0-1


[Site "https://www.chess.com"]

[Event "Titled Tuesday Blitz July 11 Early 2023"]
[White "Maximov, Dmitry"]
[Black "Girya, Olga"]
[WhiteFideId "14105659"]
[BlackFideId "4195752"]
[WhiteElo "2777"]
[BlackElo "2580"]
[Result "1-0"]
[Round "3"]
[TimeControl "180+2"]
[Date "2023.07.11"]
[WhiteClock "0:00:18"]
[BlackClock "0:00:00"]
[Board "33"]

1. e4 {[%clk 0:03:00]}  e5 {[%clk 0:03:00]} 2. Nf3 {[%clk 0:03:00]}  Nc6 {[%clk 0:03:00]} 3. Bb5 {[%clk 0:03:00]}  a6 {[%clk 0:03:00]} 4. Ba4 {[%clk 0:03:00]}  Nf6 {[%clk 0:03:01]} 5. O-O {[%clk 0:03:01]}  Nxe4 {[%clk 0:03:01]} 6. d4 {[%clk 0:03:00]}  b5 {[%clk 0:03:01]} 7. Bb3 {[%clk 0:03:01]}  d5 {[%clk 0:03:02]} 8. dxe5 {[%clk 0:03:01]}  Be6 {[%clk 0:03:02]} 9. Nbd2 {[%clk 0:03:00]}  Be7 {[%clk 0:03:00]} 10. Qe2 {[%clk 0:03:00]}  Nc5 {[%clk 0:02:55]} 11. Re1 {[%clk 0:03:00]}  O-O {[%clk 0:02:53]} 12. h3 {[%clk 0:03:00]}  d4 {[%clk 0:02:33]} 13. Bxe6 {[%clk 0:02:57]}  fxe6 {[%clk 0:02:33]} 14. Ne4 {[%clk 0:02:51]}  Qd5 {[%clk 0:02:09]} 15. a3 {[%clk 0:02:32]}  Rad8 {[%clk 0:01:58]} 16. Nxc5 {[%clk 0:02:31]}  Bxc5 {[%clk 0:01:59]} 17. Qd3 {[%clk 0:02:28]}  Rf5 {[%clk 0:01:53]} 18. Bd2 {[%clk 0:02:14]}  Nxe5 {[%clk 0:01:40]} 19. Nxe5 {[%clk 0:02:14]}  Rxe5 {[%clk 0:01:40]} 20. Rxe5 {[%clk 0:02:14]}  Qxe5 {[%clk 0:01:40]} 21. Re1 {[%clk 0:02:14]}  Qd5 {[%clk 0:01:36]} 22. Re4 {[%clk 0:02:08]}  Be7 {[%clk 0:01:24]} 23. h4 {[%clk 0:02:02]}  c5 {[%clk 0:01:20]} 24. Qe2 {[%clk 0:01:36]}  d3 {[%clk 0:00:19]} 25. cxd3 {[%clk 0:01:36]}  Qxd3 {[%clk 0:00:20]} 26. Qg4 {[%clk 0:01:27]}  Rd6 {[%clk 0:00:02]} 27. Rxe6 {[%clk 0:01:11]}  Rxe6 {[%clk 0:00:02]} 28. Qxe6+ {[%clk 0:01:11]}  Kf8 {[%clk 0:00:03]} 29. Bf4 {[%clk 0:01:01]}  Qd1+ {[%clk 0:00:02]} 30. Kh2 {[%clk 0:01:00]}  Qc2 {[%clk 0:00:00]} 31. Qxa6 {[%clk 0:00:18]} 1-0


[Site "https://www.chess.com"]

[Event "Titled Tuesday Blitz July 11 Early 2023"]
[White "Remizov, Yaroslav"]
[Black "Thecourseoisildur"]
[WhiteFideId "34134015"]
[WhiteElo "2769"]
[BlackElo "2572"]
[Result "1-0"]
[Round "3"]
[TimeControl "180+2"]
[Date "2023.07.11"]
[WhiteClock "0:02:22"]
[BlackClock "0:00:24"]
[Board "34"]

1. e4 {[%clk 0:03:00]}  c5 {[%clk 0:02:59]} 2. Nc3 {[%clk 0:03:00]}  Nc6 {[%clk 0:02:58]} 3. Bb5 {[%clk 0:03:00]}  Nd4 {[%clk 0:02:57]} 4. Bc4 {[%clk 0:03:00]}  e6 {[%clk 0:02:52]} 5. Nf3 {[%clk 0:03:00]}  Ne7 {[%clk 0:02:43]} 6. Nxd4 {[%clk 0:02:57]}  cxd4 {[%clk 0:02:42]} 7. Ne2 {[%clk 0:02:58]}  Nc6 {[%clk 0:02:37]} 8. O-O {[%clk 0:02:56]}  a6 {[%clk 0:02:31]} 9. d3 {[%clk 0:02:55]}  b5 {[%clk 0:02:30]} 10. Bb3 {[%clk 0:02:55]}  Bb7 {[%clk 0:02:29]} 11. f4 {[%clk 0:02:55]}  Be7 {[%clk 0:02:24]} 12. c3 {[%clk 0:02:51]}  Bc5 {[%clk 0:02:13]} 13. Kh1 {[%clk 0:02:48]}  O-O {[%clk 0:02:02]} 14. Qe1 {[%clk 0:02:48]}  Kh8 {[%clk 0:01:55]} 15. f5 {[%clk 0:02:46]}  f6 {[%clk 0:01:27]} 16. Qh4 {[%clk 0:02:35]}  exf5 {[%clk 0:00:54]} 17. Rxf5 {[%clk 0:02:35]}  Qe7 {[%clk 0:00:28]} 18. Qxh7+ {[%clk 0:02:20]}  Kxh7 {[%clk 0:00:24]} 19. Rh5+ {[%clk 0:02:21]}  Kg6 {[%clk 0:00:24]} 20. Nf4# {[%clk 0:02:22]} 1-0


[Site "https://www.chess.com"]

[Event "Titled Tuesday Blitz July 11 Early 2023"]
[White "Preotu, Razvan"]
[Black "Mortazavi, Ali"]
[WhiteFideId "2613280"]
[BlackFideId "401323"]
[WhiteElo "2754"]
[BlackElo "2553"]
[Result "1-0"]
[Round "3"]
[TimeControl "180+2"]
[Date "2023.07.11"]
[WhiteClock "0:00:13"]
[BlackClock "0:00:15"]
[Board "37"]

1. e4 {[%clk 0:03:00]}  c6 {[%clk 0:02:59]} 2. Nc3 {[%clk 0:03:00]}  d5 {[%clk 0:03:00]} 3. Nf3 {[%clk 0:03:01]}  dxe4 {[%clk 0:03:00]} 4. Nxe4 {[%clk 0:03:02]}  Nf6 {[%clk 0:03:00]} 5. Qe2 {[%clk 0:03:03]}  Be6 {[%clk 0:02:59]} 6. Neg5 {[%clk 0:02:58]}  Bd5 {[%clk 0:02:59]} 7. c4 {[%clk 0:02:49]}  h6 {[%clk 0:02:59]} 8. cxd5 {[%clk 0:02:43]}  hxg5 {[%clk 0:02:59]} 9. dxc6 {[%clk 0:02:37]}  Nxc6 {[%clk 0:02:58]} 10. Qb5 {[%clk 0:02:38]}  Qd7 {[%clk 0:02:35]} 11. Qxg5 {[%clk 0:02:38]}  Rh5 {[%clk 0:02:29]} 12. Qe3 {[%clk 0:02:24]}  Ng4 {[%clk 0:02:00]} 13. Qb3 {[%clk 0:02:21]}  Nd4 {[%clk 0:01:31]} 14. Nxd4 {[%clk 0:02:19]}  Qxd4 {[%clk 0:01:31]} 15. Bb5+ {[%clk 0:01:56]}  Kd8 {[%clk 0:01:21]} 16. O-O {[%clk 0:01:10]}  Qe5 {[%clk 0:00:55]} 17. Qd3+ {[%clk 0:01:10]}  Kc7 {[%clk 0:00:50]} 18. Qd7+ {[%clk 0:01:11]}  Kb6 {[%clk 0:00:51]} 19. f4 {[%clk 0:01:11]}  Qxb5 {[%clk 0:00:45]} 20. Qxg4 {[%clk 0:01:11]}  e6 {[%clk 0:00:36]} 21. d4 {[%clk 0:01:08]}  Qd5 {[%clk 0:00:34]} 22. Be3 {[%clk 0:01:07]}  g6 {[%clk 0:00:34]} 23. Rac1 {[%clk 0:01:06]}  Bd6 {[%clk 0:00:34]} 24. Qd1 {[%clk 0:00:47]}  a6 {[%clk 0:00:32]} 25. Qc2 {[%clk 0:00:29]}  Rah8 {[%clk 0:00:26]} 26. h3 {[%clk 0:00:29]}  Ka7 {[%clk 0:00:26]} 27. Qc4 {[%clk 0:00:29]}  Qe4 {[%clk 0:00:18]} 28. Rc3 {[%clk 0:00:25]}  Rd5 {[%clk 0:00:18]} 29. Qd3 {[%clk 0:00:20]}  Qxd3 {[%clk 0:00:17]} 30. Rxd3 {[%clk 0:00:21]}  Rc8 {[%clk 0:00:18]} 31. Rc3 {[%clk 0:00:20]}  Rxc3 {[%clk 0:00:18]} 32. bxc3 {[%clk 0:00:21]}  b5 {[%clk 0:00:18]} 33. Kf2 {[%clk 0:00:20]}  Be7 {[%clk 0:00:16]} 34. Ke2 {[%clk 0:00:20]}  Kb6 {[%clk 0:00:17]} 35. Kd3 {[%clk 0:00:21]}  Rd8 {[%clk 0:00:18]} 36. g4 {[%clk 0:00:18]}  Kc6 {[%clk 0:00:17]} 37. f5 {[%clk 0:00:18]}  gxf5 {[%clk 0:00:17]} 38. gxf5 {[%clk 0:00:19]}  Kd5 {[%clk 0:00:18]} 39. fxe6 {[%clk 0:00:13]}  fxe6 {[%clk 0:00:19]} 40. Rf7 {[%clk 0:00:13]}  Bd6 {[%clk 0:00:19]} 41. Ra7 {[%clk 0:00:13]}  Rh8 {[%clk 0:00:18]} 42. Rxa6 {[%clk 0:00:13]}  Rxh3 {[%clk 0:00:18]} 43. Ke2 {[%clk 0:00:09]}  Ke4 {[%clk 0:00:17]} 44. Rxd6 {[%clk 0:00:08]}  Rxe3+ {[%clk 0:00:17]} 45. Kd2 {[%clk 0:00:08]}  Rd3+ {[%clk 0:00:15]} 46. Kc2 {[%clk 0:00:09]}  Rh3 {[%clk 0:00:15]} 47. Rxe6+ {[%clk 0:00:09]}  Kd5 {[%clk 0:00:16]} 48. Re5+ {[%clk 0:00:09]}  Kc6 {[%clk 0:00:17]} 49. Kb3 {[%clk 0:00:10]}  Rh1 {[%clk 0:00:16]} 50. Rc5+ {[%clk 0:00:09]}  Kb6 {[%clk 0:00:17]} 51. a4 {[%clk 0:00:08]}  bxa4+ {[%clk 0:00:15]} 52. Kxa4 {[%clk 0:00:09]}  Rb1 {[%clk 0:00:16]} 53. Ka3 {[%clk 0:00:09]}  Ka6 {[%clk 0:00:15]} 54. Ka2 {[%clk 0:00:10]}  Rb8 {[%clk 0:00:16]} 55. Rc4 {[%clk 0:00:10]}  Ka5 {[%clk 0:00:16]} 56. d5 {[%clk 0:00:09]}  Rd8 {[%clk 0:00:15]} 57. Rd4 {[%clk 0:00:10]}  Kb5 {[%clk 0:00:16]} 58. d6 {[%clk 0:00:09]}  Kc6 {[%clk 0:00:15]} 59. d7 {[%clk 0:00:08]}  Rxd7 {[%clk 0:00:15]} 60. Rxd7 {[%clk 0:00:09]}  Kxd7 {[%clk 0:00:16]} 61. Kb3 {[%clk 0:00:09]}  Kd6 {[%clk 0:00:16]} 62. Kb4 {[%clk 0:00:09]}  Kc7 {[%clk 0:00:12]} 63. Kc5 {[%clk 0:00:09]}  Kb7 {[%clk 0:00:13]} 64. Kd6 {[%clk 0:00:10]}  Ka6 {[%clk 0:00:14]} 65. c4 {[%clk 0:00:10]}  Kb7 {[%clk 0:00:14]} 66. c5 {[%clk 0:00:10]}  Kc8 {[%clk 0:00:14]} 67. Kc6 {[%clk 0:00:10]}  Kb8 {[%clk 0:00:15]} 68. Kd7 {[%clk 0:00:11]}  Ka7 {[%clk 0:00:16]} 69. c6 {[%clk 0:00:12]}  Kb6 {[%clk 0:00:17]} 70. c7 {[%clk 0:00:13]}  Kb7 {[%clk 0:00:15]} 71. c8=Q+ {[%clk 0:00:13]} 1-0


[Site "https://www.chess.com"]

[Event "Titled Tuesday Blitz July 11 Early 2023"]
[White "Bauman_Guy"]
[Black "Rottenwohrer Suarez, Juan"]
[BlackFideId "32068182"]
[WhiteElo "2737"]
[BlackElo "2546"]
[Result "1-0"]
[Round "3"]
[TimeControl "180+2"]
[Date "2023.07.11"]
[WhiteClock "0:02:07"]
[BlackClock "0:00:00"]
[Board "39"]

1. e4 {[%clk 0:03:00]}  c5 {[%clk 0:03:00]} 2. Nf3 {[%clk 0:03:01]}  g6 {[%clk 0:02:59]} 3. d4 {[%clk 0:02:59]}  cxd4 {[%clk 0:03:00]} 4. Nxd4 {[%clk 0:02:59]}  Nc6 {[%clk 0:03:00]} 5. c4 {[%clk 0:02:59]}  Nf6 {[%clk 0:03:01]} 6. Nc3 {[%clk 0:02:59]}  d6 {[%clk 0:03:01]} 7. Be2 {[%clk 0:02:57]}  Nxd4 {[%clk 0:03:02]} 8. Qxd4 {[%clk 0:02:57]}  Bg7 {[%clk 0:03:03]} 9. Be3 {[%clk 0:02:57]}  O-O {[%clk 0:03:03]} 10. Qd2 {[%clk 0:02:57]}  a5 {[%clk 0:03:04]} 11. O-O {[%clk 0:02:57]}  a4 {[%clk 0:03:05]} 12. Bd4 {[%clk 0:02:58]}  Be6 {[%clk 0:03:03]} 13. Rad1 {[%clk 0:02:57]}  Qa5 {[%clk 0:03:03]} 14. f4 {[%clk 0:02:57]}  Rfc8 {[%clk 0:03:03]} 15. b3 {[%clk 0:02:52]}  axb3 {[%clk 0:03:02]} 16. axb3 {[%clk 0:02:53]}  Qb4 {[%clk 0:02:55]} 17. f5 {[%clk 0:02:53]}  Bd7 {[%clk 0:02:49]} 18. Bxf6 {[%clk 0:02:53]}  exf6 {[%clk 0:02:08]} 19. Nd5 {[%clk 0:02:52]}  Qxd2 {[%clk 0:02:03]} 20. Rxd2 {[%clk 0:02:51]}  Rd8 {[%clk 0:01:08]} 21. Nb6 {[%clk 0:02:46]}  Rab8 {[%clk 0:00:57]} 22. Rxd6 {[%clk 0:02:46]}  Bc6 {[%clk 0:00:57]} 23. Rxd8+ {[%clk 0:02:44]}  Rxd8 {[%clk 0:00:58]} 24. Nd5 {[%clk 0:02:44]}  Bxd5 {[%clk 0:00:37]} 25. exd5 {[%clk 0:02:40]}  g5 {[%clk 0:00:20]} 26. Bh5 {[%clk 0:02:27]}  Bf8 {[%clk 0:00:20]} 27. Ra1 {[%clk 0:02:26]}  Re8 {[%clk 0:00:17]} 28. Kf1 {[%clk 0:02:20]}  Bc5 {[%clk 0:00:16]} 29. Ra5 {[%clk 0:02:18]}  Re1+ {[%clk 0:00:02]} 30. Kxe1 {[%clk 0:02:18]}  Bb4+ {[%clk 0:00:03]} 31. Ke2 {[%clk 0:02:18]}  Bxa5 {[%clk 0:00:04]} 32. c5 {[%clk 0:02:14]}  Bb4 {[%clk 0:00:04]} 33. c6 {[%clk 0:02:13]}  bxc6 {[%clk 0:00:02]} 34. dxc6 {[%clk 0:02:13]}  Kf8 {[%clk 0:00:02]} 35. Kd3 {[%clk 0:02:13]}  Bd6 {[%clk 0:00:02]} 36. g3 {[%clk 0:02:11]}  Ke7 {[%clk 0:00:02]} 37. Kc4 {[%clk 0:02:11]}  Bc7 {[%clk 0:00:01]} 38. Kc5 {[%clk 0:02:11]}  Kd8 {[%clk 0:00:01]} 39. b4 {[%clk 0:02:07]}  Ke7 {[%clk 0:00:01]} 40. b5 {[%clk 0:02:07]}  Bd6+ {[%clk 0:00:02]} 41. Kb6 {[%clk 0:02:07]}  Kd8 {[%clk 0:00:00]} 42. Kb7 {[%clk 0:02:07]} 1-0


[Site "https://www.chess.com"]

[Event "Titled Tuesday Blitz July 11 Early 2023"]
[White "Nazari, Arad"]
[Black "Tokman, Ariel"]
[WhiteFideId "12577324"]
[BlackFideId "117420"]
[WhiteElo "2721"]
[BlackElo "2537"]
[Result "1-0"]
[Round "3"]
[TimeControl "180+2"]
[Date "2023.07.11"]
[WhiteClock "0:00:13"]
[BlackClock "0:00:00"]
[Board "42"]

1. e4 {[%clk 0:03:00]}  e5 {[%clk 0:02:52]} 2. f4 {[%clk 0:03:00]}  exf4 {[%clk 0:02:51]} 3. Nf3 {[%clk 0:03:00]}  g5 {[%clk 0:02:50]} 4. h4 {[%clk 0:02:53]}  g4 {[%clk 0:02:38]} 5. Ne5 {[%clk 0:02:46]}  d5 {[%clk 0:02:34]} 6. d4 {[%clk 0:02:22]}  Nf6 {[%clk 0:02:08]} 7. Bxf4 {[%clk 0:02:20]}  Nxe4 {[%clk 0:02:06]} 8. Nc3 {[%clk 0:01:53]}  Bf5 {[%clk 0:01:54]} 9. Bd3 {[%clk 0:01:35]}  Nc6 {[%clk 0:01:42]} 10. Bb5 {[%clk 0:01:20]}  Nxc3 {[%clk 0:01:22]} 11. bxc3 {[%clk 0:01:18]}  Qf6 {[%clk 0:00:56]} 12. O-O {[%clk 0:00:55]}  O-O-O {[%clk 0:00:28]} 13. Bg5 {[%clk 0:00:50]}  Qe6 {[%clk 0:00:23]} 14. Nxc6 {[%clk 0:00:43]}  bxc6 {[%clk 0:00:22]} 15. Ba6+ {[%clk 0:00:43]}  Kd7 {[%clk 0:00:22]} 16. Bxd8 {[%clk 0:00:35]}  Kxd8 {[%clk 0:00:23]} 17. Qd2 {[%clk 0:00:33]}  Bh6 {[%clk 0:00:17]} 18. Qe2 {[%clk 0:00:27]}  Be4 {[%clk 0:00:14]} 19. Bd3 {[%clk 0:00:22]}  f5 {[%clk 0:00:11]} 20. c4 {[%clk 0:00:18]}  Bg7 {[%clk 0:00:09]} 21. c3 {[%clk 0:00:13]}  Qe7 {[%clk 0:00:06]} 22. cxd5 {[%clk 0:00:12]}  cxd5 {[%clk 0:00:00]} 23. Bxe4 {[%clk 0:00:13]} 1-0


[Site "https://www.chess.com"]

[Event "Titled Tuesday Blitz July 11 Early 2023"]
[White "Wagner, Dennis"]
[Black "Sidletskyi, Ivan"]
[WhiteFideId "24650684"]
[BlackFideId "14156024"]
[WhiteElo "2710"]
[BlackElo "2535"]
[Result "1-0"]
[Round "3"]
[TimeControl "180+2"]
[Date "2023.07.11"]
[WhiteClock "0:02:21"]
[BlackClock "0:00:39"]
[Board "43"]

1. d4 {[%clk 0:03:00]}  Nf6 {[%clk 0:02:59]} 2. Nf3 {[%clk 0:03:01]}  d5 {[%clk 0:02:59]} 3. c4 {[%clk 0:03:01]}  e6 {[%clk 0:02:59]} 4. g3 {[%clk 0:03:01]}  Bb4+ {[%clk 0:02:59]} 5. Bd2 {[%clk 0:03:01]}  Bd6 {[%clk 0:02:59]} 6. Bg2 {[%clk 0:03:02]}  c6 {[%clk 0:03:00]} 7. O-O {[%clk 0:03:01]}  Nbd7 {[%clk 0:02:58]} 8. b3 {[%clk 0:03:00]}  O-O {[%clk 0:02:56]} 9. Nc3 {[%clk 0:03:00]}  Ne4 {[%clk 0:02:53]} 10. Nxe4 {[%clk 0:02:55]}  dxe4 {[%clk 0:02:54]} 11. Ng5 {[%clk 0:02:55]}  e5 {[%clk 0:02:35]} 12. Nxe4 {[%clk 0:02:53]}  Bc7 {[%clk 0:02:30]} 13. dxe5 {[%clk 0:02:38]}  Nxe5 {[%clk 0:02:24]} 14. Bb4 {[%clk 0:02:37]}  Re8 {[%clk 0:02:22]} 15. Nd6 {[%clk 0:02:36]}  Bxd6 {[%clk 0:02:21]} 16. Qxd6 {[%clk 0:02:36]}  Bd7 {[%clk 0:02:02]} 17. Rad1 {[%clk 0:02:28]}  Re6 {[%clk 0:02:00]} 18. Qd4 {[%clk 0:02:24]}  c5 {[%clk 0:00:39]} 19. Bxc5 {[%clk 0:02:21]} 1-0


[Site "https://www.chess.com"]

[Event "Titled Tuesday Blitz July 11 Early 2023"]
[White "Jaracz, Pawel"]
[Black "Urbina Perez, Juan Antonio"]
[WhiteFideId "1102222"]
[BlackFideId "2217368"]
[WhiteElo "2709"]
[BlackElo "2492"]
[Result "1-0"]
[Round "3"]
[TimeControl "180+2"]
[Date "2023.07.11"]
[WhiteClock "0:00:30"]
[BlackClock "0:00:00"]
[Board "45"]

1. d4 {[%clk 0:02:56]}  d5 {[%clk 0:02:59]} 2. c4 {[%clk 0:02:56]}  c6 {[%clk 0:02:58]} 3. e3 {[%clk 0:02:56]}  Nf6 {[%clk 0:02:59]} 4. Nc3 {[%clk 0:02:55]}  a6 {[%clk 0:02:58]} 5. Qc2 {[%clk 0:02:43]}  g6 {[%clk 0:02:45]} 6. Nf3 {[%clk 0:02:41]}  Bf5 {[%clk 0:02:42]} 7. Qb3 {[%clk 0:02:40]}  Ra7 {[%clk 0:02:39]} 8. Be2 {[%clk 0:02:30]}  Bg7 {[%clk 0:02:38]} 9. O-O {[%clk 0:02:30]}  O-O {[%clk 0:02:38]} 10. Bd2 {[%clk 0:02:27]}  Ne4 {[%clk 0:02:27]} 11. Rfc1 {[%clk 0:02:21]}  Bg4 {[%clk 0:02:18]} 12. Be1 {[%clk 0:02:20]}  dxc4 {[%clk 0:02:08]} 13. Qxc4 {[%clk 0:02:17]}  Bxf3 {[%clk 0:02:05]} 14. Bxf3 {[%clk 0:02:16]}  Nd6 {[%clk 0:02:00]} 15. Qb3 {[%clk 0:02:15]}  Nd7 {[%clk 0:01:59]} 16. Rd1 {[%clk 0:02:07]}  Qb6 {[%clk 0:01:55]} 17. Na4 {[%clk 0:02:02]}  Qxb3 {[%clk 0:01:53]} 18. axb3 {[%clk 0:02:03]}  Raa8 {[%clk 0:01:52]} 19. Rac1 {[%clk 0:01:55]}  Nb5 {[%clk 0:01:46]} 20. Bb4 {[%clk 0:01:50]}  Rfe8 {[%clk 0:01:45]} 21. d5 {[%clk 0:01:50]}  cxd5 {[%clk 0:01:34]} 22. Bxd5 {[%clk 0:01:45]}  Rab8 {[%clk 0:01:19]} 23. Bxf7+ {[%clk 0:01:42]}  Kxf7 {[%clk 0:01:19]} 24. Rxd7 {[%clk 0:01:42]}  Bf6 {[%clk 0:01:12]} 25. Nc3 {[%clk 0:01:36]}  Nxc3 {[%clk 0:01:03]} 26. bxc3 {[%clk 0:01:34]}  Red8 {[%clk 0:00:58]} 27. Rcd1 {[%clk 0:01:31]}  Ke8 {[%clk 0:00:57]} 28. Rxd8+ {[%clk 0:01:30]}  Rxd8 {[%clk 0:00:58]} 29. Rxd8+ {[%clk 0:01:30]}  Kxd8 {[%clk 0:00:58]} 30. c4 {[%clk 0:01:31]}  Kd7 {[%clk 0:00:55]} 31. g4 {[%clk 0:01:30]}  e6 {[%clk 0:00:55]} 32. Kg2 {[%clk 0:01:30]}  Bd8 {[%clk 0:00:53]} 33. Kf3 {[%clk 0:01:29]}  Bc7 {[%clk 0:00:52]} 34. h3 {[%clk 0:01:29]}  Bh2 {[%clk 0:00:51]} 35. Ke4 {[%clk 0:01:28]}  Bc7 {[%clk 0:00:48]} 36. f4 {[%clk 0:01:28]}  Bb8 {[%clk 0:00:47]} 37. f5 {[%clk 0:01:19]}  exf5+ {[%clk 0:00:41]} 38. gxf5 {[%clk 0:01:19]}  Ke8 {[%clk 0:00:34]} 39. fxg6 {[%clk 0:01:10]}  hxg6 {[%clk 0:00:35]} 40. Kd5 {[%clk 0:01:09]}  Kd7 {[%clk 0:00:34]} 41. e4 {[%clk 0:01:09]}  Bg3 {[%clk 0:00:30]} 42. e5 {[%clk 0:01:09]}  Bh2 {[%clk 0:00:25]} 43. e6+ {[%clk 0:01:08]}  Ke8 {[%clk 0:00:25]} 44. Bd6 {[%clk 0:01:07]}  Bg1 {[%clk 0:00:24]} 45. Bc7 {[%clk 0:01:06]}  Bf2 {[%clk 0:00:22]} 46. c5 {[%clk 0:01:04]}  Bg1 {[%clk 0:00:20]} 47. Bd6 {[%clk 0:01:04]}  Bf2 {[%clk 0:00:19]} 48. c6 {[%clk 0:01:04]}  bxc6+ {[%clk 0:00:20]} 49. Kxc6 {[%clk 0:01:04]}  Be3 {[%clk 0:00:17]} 50. Kb7 {[%clk 0:01:01]}  a5 {[%clk 0:00:17]} 51. Ka6 {[%clk 0:01:01]}  Bd2 {[%clk 0:00:16]} 52. Kb5 {[%clk 0:01:01]}  Be1 {[%clk 0:00:15]} 53. Kc6 {[%clk 0:00:45]}  Bd2 {[%clk 0:00:14]} 54. Kd5 {[%clk 0:00:45]}  Be1 {[%clk 0:00:14]} 55. Bc5 {[%clk 0:00:45]}  Bc3 {[%clk 0:00:12]} 56. Kc4 {[%clk 0:00:44]}  Be1 {[%clk 0:00:11]} 57. Bd6 {[%clk 0:00:39]}  Bd2 {[%clk 0:00:11]} 58. Kb5 {[%clk 0:00:38]}  Be1 {[%clk 0:00:11]} 59. Kc6 {[%clk 0:00:33]}  Bd2 {[%clk 0:00:11]} 60. Kd5 {[%clk 0:00:33]}  Bc3 {[%clk 0:00:10]} 61. Bc5 {[%clk 0:00:33]}  Be1 {[%clk 0:00:09]} 62. Ke5 {[%clk 0:00:34]}  Bc3+ {[%clk 0:00:09]} 63. Bd4 {[%clk 0:00:34]}  Bd2 {[%clk 0:00:05]} 64. Kf6 {[%clk 0:00:34]}  g5 {[%clk 0:00:05]} 65. Bc5 {[%clk 0:00:33]}  Bc1 {[%clk 0:00:05]} 66. Kf5 {[%clk 0:00:34]}  Bd2 {[%clk 0:00:05]} 67. Bd6 {[%clk 0:00:33]}  Bc1 {[%clk 0:00:05]} 68. Bc7 {[%clk 0:00:31]}  Bd2 {[%clk 0:00:05]} 69. Be5 {[%clk 0:00:30]}  Bc1 {[%clk 0:00:02]} 70. Bf6 {[%clk 0:00:30]}  Bd2 {[%clk 0:00:00]} 71. Bxg5 {[%clk 0:00:30]} 1-0


[Site "https://www.chess.com"]